bitfinex/quotes_SOLUSD_20250518
["timestamp","ask_amount","ask_price","bid_price","bid_amount"]
[1747595761912,24.43041866,170.17,170.07,53.03984535]
[1747595762180,5.87682181,170.16,170.07,47.16]
[1747595762362,30.30724047,170.16,170.07,47.16]
[1747595763089,24.43041866,170.14,170.07,21.16]
[1747595763256,24.43041866,170.13,170.04,26.0]
[1747595763456,24.43041866,170.14,170.04,26.0]
[1747595763756,21.56,170.15,170.04,26.0]
[1747595763977,24.43041866,170.14,170.04,26.0]
[1747595764176,5.8778581,170.13,170.04,31.8808168]
[1747595764475,30.30827676,170.13,170.04,26.0]
[1747595765670,30.30827676,170.13,170.04,31.88087952]
[1747595765875,24.43041866,170.12,170.03,6.3203]
[1747595766056,24.43041866,170.12,170.01,22.7395]
[1747595766057,161.8070418,170.11,170.01,28.62144716]
[1747595766381,5.87889476,170.1,170.01,54.62144716]
[1747595766885,5.87889476,170.1,170.01,28.62144716]
[1747595767086,5.87889476,170.1,170.02,26.0]
[1747595767385,5.87889476,170.1,170.02,31.88150507]
[1747595768267,5.87889476,170.1,170.02,26.0]
[1747595769774,5.87889476,170.1,170.02,31.88149963]
[1747595770375,5.87889476,170.1,170.01,28.62146083]
[1747595770578,30.30931342,170.1,170.01,22.7395]
[1747595770783,30.30931342,170.1,170.01,28.62144893]
[1747595770965,5.87889476,170.1,170.01,28.62144893]
[1747595771163,137.37662314,170.11,170.03,18.64964886]
[1747595771883,143.25525982,170.11,170.02,26.0]
[1747595772486,137.37662314,170.11,170.03,5.88131506]
[1747595772784,137.37662314,170.11,170.03,40.4102062]
[1747595773360,137.37662314,170.11,170.04,18.64964886]
[1747595773585,137.37662314,170.11,170.05,26.0]
[1747595773976,137.37662314,170.11,170.07,26.0]
[1747595774684,137.37662314,170.11,170.08,5.87958607]
[1747595774984,143.25385613,170.15,170.08,5.87958607]
[1747595776492,137.37662314,170.15,170.08,5.87958607]
[1747595777175,143.25392647,170.15,170.08,5.87958607]
[1747595779082,137.37662314,170.15,170.08,5.87958607]
[1747595782190,143.25383009,170.15,170.08,5.87958607]
[1747595782391,143.25383009,170.15,170.07,31.87982899]
[1747595791415,143.25383009,170.15,170.07,26.0]
[1747595791617,173.20449876,170.15,170.08,26.0]
[1747595793008,194.72449876,170.15,170.08,26.0]
[1747595794312,194.72449876,170.15,170.05,5.88052153]
[1747595794514,137.37662314,170.14,170.06,26.0]
[1747595794810,15.25775066,170.11,170.01,7.8154]
[1747595795013,5.8792404,170.09,170.02,5.88155971]
[1747595795215,5.8792404,170.09,170.01,1.5795]
[1747595795216,5.8792404,170.09,170.01,33.46142723]
[1747595795409,5.87820362,170.12,170.02,18.64964886]
[1747595796200,5.87820362,170.12,170.01,33.46142723]
[1747595796201,35.83146333,170.12,170.01,33.46142723]
[1747595798228,5.87820362,170.12,170.02,18.64964886]
[1747595798722,5.87820362,170.12,170.02,19.8255975]
[1747595799289,143.25452893,170.13,170.02,19.8255975]
[1747595799716,143.25452893,170.13,170.02,18.64964886]
[1747595800204,173.20692486,170.13,170.04,26.0]
[1747595800406,137.37662314,170.12,170.03,26.0]
[1747595800923,137.37662314,170.12,170.01,7.46142723]
[1747595800924,15.25775066,170.11,170.01,33.46142723]
[1747595801124,137.37662314,170.1,170.01,27.5795]
[1747595801424,137.37662314,170.09,170.01,26.0]
[1747595801938,152.6343738,170.09,170.01,26.0]
[1747595802390,5.87958607,170.08,170.01,26.0]
[1747595805607,5.87958607,170.08,169.98,22.02]
[1747595805608,5.87958607,170.08,169.99,5.88269898]
[1747595805807,5.87958607,170.08,170.0,26.0]
[1747595806333,1.542,170.07,170.0,26.0]
[1747595807043,1.542,170.07,169.98,22.02]
[1747595807044,15.25775066,170.06,169.98,22.02]
[1747595807336,15.25775066,170.06,169.97,1.6419]
[1747595807721,5.88062334,170.05,169.96,5.88363575]
[1747595808032,152.6343738,170.04,169.95,5.88400761]
[1747595808918,5.88131506,170.03,169.95,5.88400761]
[1747595809529,15.25775066,170.01,169.93,24.70099998]
[1747595809720,137.37662314,170.0,169.93,23.17309998]
[1747595809926,137.37662314,170.0,169.93,29.05775214]
[1747595810323,137.37662314,170.0,169.93,23.17309998]
[1747595811042,5.88269898,169.99,169.93,23.17309998]
[1747595811939,137.37662314,170.0,169.93,29.05779786]
[1747595812647,143.25903688,170.0,169.93,29.05779786]
[1747595814137,137.37662314,170.0,169.93,29.05779786]
[1747595815160,137.37662314,170.04,169.94,19.82629487]
[1747595815444,137.37662314,170.04,169.97,5.88339118]
[1747595815645,143.25764304,170.04,169.97,5.88339118]
[1747595815826,143.25764304,170.04,169.96,31.88363746]
[1747595816224,143.25764304,170.04,169.96,26.0]
[1747595816423,158.5153937,170.04,169.96,26.0]
[1747595818162,15.25775066,170.03,169.94,5.88409159]
[1747595818374,152.6343738,170.02,169.93,49.17309998]
[1747595818666,15.25775066,169.98,169.93,0.93309998]
[1747595818878,137.37662314,169.97,169.88,28.12647634]
[1747595819763,5.88373734,169.96,169.88,28.12647634]
[1747595821166,137.37662314,169.97,169.91,26.0]
[1747595822050,137.37662314,169.97,169.92,26.0]
[1747595822365,1.6558,170.0,169.92,26.0]
[1747595822567,1.6558,170.0,169.93,26.0]
[1747595822864,137.37662314,170.01,169.93,44.64964886]
[1747595823044,137.37662314,170.01,169.94,5.88442979]
[1747595823449,137.37662314,170.01,169.94,20.59550428]
[1747595824873,137.37662314,170.01,169.97,26.0]
[1747595825351,137.37662314,170.01,169.97,31.88312616]
[1747595826176,137.37662314,170.01,169.97,26.0]
[1747595826671,137.37662314,170.01,169.97,5.88336436]
[1747595827077,139.04052314,170.05,169.97,5.88336436]
[1747595827375,144.92126528,170.05,169.97,5.88336436]
[1747595830178,137.37662314,170.05,169.99,18.64964886]
[1747595830359,6.2775,170.08,169.99,18.64964886]
[1747595830360,5.87963923,170.08,169.99,18.64964886]
[1747595831161,143.25595432,170.09,169.99,18.64964886]
[1747595831566,137.37662314,170.09,170.02,26.0]
[1747595831758,137.37662314,170.09,169.99,18.64964886]
[1747595832060,137.37662314,170.09,170.02,26.0]
[1747595832263,137.37662314,170.09,170.03,5.88131506]
[1747595833154,143.25594423,170.09,170.02,26.0]
[1747595834086,143.25594423,170.09,170.0,5.88235294]
[1747595835583,137.37662314,170.09,170.01,18.64964886]
[1747595836160,143.25594834,170.09,170.01,18.64964886]
[1747595836362,143.25594834,170.09,170.02,5.88166098]
[1747595837583,143.25594834,170.09,170.0,5.88235294]
[1747595837784,143.25594834,170.09,169.99,5.88266487]
[1747595837785,15.25775066,170.08,169.99,5.88266487]
[1747595837987,137.37662314,170.07,169.99,5.88266487]
[1747595839058,152.6343738,170.07,169.99,5.88266487]
[1747595839256,137.37662314,170.07,169.99,5.88266487]
[1747595839874,137.37662314,170.07,169.99,31.88266487]
[1747595840061,143.25663026,170.07,169.99,31.88266487]
[1747595840262,137.37662314,170.07,169.99,31.88266487]
[1747595840782,143.25661163,170.07,169.99,31.88266487]
[1747595841317,137.37662314,170.07,170.0,18.64964886]
[1747595841474,137.37662314,170.07,170.02,26.0]
[1747595841798,137.37662314,170.07,170.03,5.88131506]
[1747595842011,1.5723,170.1,170.03,5.88131506]
[1747595843080,7.45121593,170.1,170.03,5.88131506]
[1747595845698,22.70896659,170.1,170.02,26.0]
[1747595846001,7.45121593,170.1,170.02,31.88162815]
[1747595847296,22.70896659,170.1,170.02,26.0]
[1747595847498,37.4062035,170.1,170.0,31.88210247]
[1747595847988,6.95121593,170.1,170.0,31.88210247]
[1747595848984,22.20896659,170.1,170.0,31.88210247]
[1747595849482,36.9062035,170.1,170.0,31.88210247]
[1747595849701,15.25775066,170.09,169.97,103.04514886]
[1747595849908,152.6343738,170.08,169.97,20.24514886]
[1747595850280,152.6343738,170.08,169.98,26.0]
[1747595850801,15.25775066,170.06,169.97,26.0]
[1747595850976,137.37662314,170.05,169.97,26.0]
[1747595851398,5.87958607,170.08,169.99,26.0]
[1747595852706,15.25775066,170.07,169.97,26.0]
[1747595852889,15.25775066,170.06,169.97,26.0]
[1747595853209,35.83630192,170.08,169.97,26.0]
[1747595853510,35.83630192,170.08,169.98,5.88304506]
[1747595854403,137.37662314,170.07,169.98,5.88304506]
[1747595854608,5.88027754,170.06,169.97,31.88335368]
[1747595855608,20.58097141,170.06,169.97,26.0]
[1747595855991,35.83872207,170.06,169.96,5.88365843]
[1747595856409,35.83872207,170.06,169.96,31.88365843]
[1747595856789,137.37662314,170.05,169.96,26.0]
[1747595857891,152.6343738,170.05,169.96,26.0]
[1747595858916,5.88096918,170.04,169.96,26.0]
[1747595860116,5.88096918,170.04,169.96,31.88369375]
[1747595861303,5.88096918,170.04,169.96,26.0]
[1747595862118,5.88096918,170.04,169.96,31.88372479]
[1747595863099,5.88096918,170.04,169.96,26.0]
[1747595864893,20.58339213,170.04,169.96,26.0]
[1747595865824,20.58339213,170.04,169.95,5.88398829]
[1747595866035,20.58339213,170.04,169.95,31.88398829]
[1747595867619,35.84114279,170.04,169.95,26.0]
[1747595868103,20.58339213,170.04,169.94,21.84]
[1747595868310,15.25775066,170.0,169.9,18.64964886]
[1747595868503,15.25775066,170.0,169.91,26.0]
[1747595868710,185.93702314,170.03,169.91,26.0]
[1747595868921,15.25775066,170.01,169.91,26.0]
[1747595869523,5.88235294,170.0,169.91,31.88516068]
[1747595871229,20.58823529,170.0,169.91,26.0]
[1747595871730,35.84598595,170.0,169.91,31.88544928]
[1747595872216,20.58823529,170.0,169.91,31.88544928]
[1747595872416,157.96485843,170.0,169.91,31.88544928]
[1747595872615,157.96485843,170.0,169.91,26.0]
[1747595872822,173.22260909,170.0,169.91,26.0]
[1747595873419,173.22260909,170.0,169.89,28.56502194]
[1747595873715,15.25775066,169.99,169.89,54.56502194]
[1747595873933,15.25775066,169.99,169.89,48.6789]
[1747595874136,15.25775066,169.99,169.89,54.56497505]
[1747595876133,157.96485843,170.0,169.89,54.56497505]
[1747595876426,5.88304506,169.98,169.89,54.56497505]
[1747595878515,5.88304506,169.98,169.9,18.64964886]
[1747595879531,5.88269898,169.99,169.91,5.88546877]
[1747595881240,5.88269898,169.99,169.92,18.64964886]
[1747595881529,137.37662314,170.0,169.95,26.0]
[1747595881724,5.88131506,170.03,169.95,26.0]
[1747595881916,137.37662314,170.04,169.96,20.21714886]
[1747595882632,5.87958607,170.08,169.98,18.64964886]
[1747595883206,15.25775066,170.07,169.96,7.45102613]
[1747595883435,15.25775066,170.06,169.96,26.10067499]
[1747595883822,20.57855126,170.08,169.96,26.10067499]
[1747595884014,15.25775066,170.07,169.96,26.10067499]
[1747595884727,5.88027754,170.06,169.96,26.10067499]
[1747595884932,5.88027754,170.06,169.97,18.64964886]
[1747595885521,5.88027754,170.06,169.96,27.27706503]
[1747595885816,5.88027754,170.06,169.96,7.45102613]
[1747595886021,5.88027754,170.06,169.97,18.64964886]
[1747595886925,5.87958607,170.08,169.99,18.64964886]
[1747595888014,5.87958607,170.08,169.98,26.0]
[1747595888940,15.25775066,170.07,169.98,26.0]
[1747595889459,15.25775066,170.07,169.98,31.88299905]
[1747595890042,5.88027754,170.06,169.98,31.88299905]
[1747595891317,20.58097141,170.06,169.98,26.0]
[1747595891536,137.37662314,170.05,169.96,1.5675]
[1747595891735,152.6343738,170.05,169.96,1.5675]
[1747595892060,15.25775066,170.04,169.96,1.5675]
[1747595892437,137.37662314,170.05,169.96,1.5675]
[1747595892634,137.37662314,170.05,169.96,26.10078397]
[1747595892842,137.37662314,170.05,169.97,44.64964886]
[1747595893019,137.37662314,170.05,169.97,45.82588616]
[1747595893220,137.37662314,170.05,169.98,5.88304506]
[1747595894356,21.13744599,170.08,170.0,5.88235294]
[1747595894558,5.87969533,170.08,170.0,5.88235294]
[1747595895557,5.87969533,170.08,169.99,24.53234784]
[1747595896446,143.25592545,170.09,170.0,26.0]
[1747595897647,143.25592545,170.09,170.01,5.88200694]
[1747595898057,137.37662314,170.09,170.01,5.88200694]
[1747595899144,137.37662314,170.09,170.02,18.64964886]
[1747595899573,137.37662314,170.09,170.03,26.0]
[1747595899862,137.37662314,170.13,170.04,5.88096918]
[1747595900736,143.25453716,170.13,170.03,26.0]
[1747595900939,15.25775066,170.11,170.03,26.0]
[1747595901138,15.25775066,170.11,170.03,31.88128248]
[1747595901869,15.25775066,170.11,170.03,26.0]
[1747595902073,152.6343738,170.1,170.01,26.6762]
[1747595902260,152.6343738,170.1,170.01,32.55816681]
[1747595902960,21.13699106,170.09,170.01,32.55816681]
[1747595903159,21.13699106,170.09,170.01,26.46196681]
[1747595903351,21.13699106,170.09,170.01,20.58]
[1747595903665,21.13699106,170.09,170.01,26.46192635]
[1747595904168,5.8792404,170.09,170.01,26.46192635]
[1747595904841,143.25554205,170.1,170.01,26.46192635]
[1747595907663,158.51329271,170.1,170.01,26.46192635]
[1747595907865,15.25775066,170.08,170.01,20.58]
[1747595908362,15.25775066,170.09,170.01,26.46200668]
[1747595908670,15.25775066,170.09,170.01,20.58]
[1747595908970,15.25775066,170.08,170.01,20.58]
[1747595909572,16.82325066,170.09,170.01,20.58]
[1747595910063,5.87958607,170.08,170.0,5.88233617]
[1747595910275,15.25775066,170.03,169.95,20.58]
[1747595910448,15.25775066,170.03,169.95,46.58]
[1747595910642,15.25775066,170.02,169.95,20.58]
[1747595910870,1.5655,170.03,169.9,1.6636]
[1747595911044,15.25775066,169.98,169.9,1.6636]
[1747595911367,15.25775066,169.99,169.91,34.28660407]
[1747595911753,15.25775066,169.99,169.91,40.17196702]
[1747595911950,5.88304506,169.98,169.91,34.28660407]
[1747595912156,5.88304506,169.98,169.91,40.1719038]
[1747595912473,143.25828582,170.02,169.92,18.64964886]
[1747595912660,137.37662314,170.02,169.95,26.0]
[1747595912970,20.28,170.05,169.96,19.8261734]
[1747595913159,20.28,170.05,169.98,18.64964886]
[1747595913677,20.28,170.05,169.99,26.0]
[1747595914057,137.37662314,170.07,170.0,5.88235294]
[1747595915258,30.37291066,170.1,170.0,5.88235294]
[1747595915455,25.35066132,170.1,170.0,5.88235294]
[1747595916174,21.13691198,170.1,170.0,5.88235294]
[1747595916660,15.25775066,170.08,170.0,5.88235294]
[1747595916860,15.25775066,170.09,170.0,5.88235294]
[1747595917580,5.87958607,170.08,170.0,5.88235294]
[1747595918274,15.25775066,170.04,169.94,26.46442979]
[1747595918575,15.25775066,170.03,169.94,26.46442979]
[1747595918775,15.25775066,170.03,169.94,52.46442979]
[1747595918977,152.6343738,170.02,169.94,52.46442979]
[1747595919351,137.37662314,170.02,169.94,52.46442979]
[1747595919651,143.25841059,170.02,169.94,26.46442979]
[1747595919857,143.25841059,170.02,169.94,52.46442979]
[1747595920252,158.51616125,170.02,169.94,46.58]
[1747595920781,143.25841059,170.02,169.94,52.46419937]
[1747595923075,137.37662314,170.02,169.95,18.64964886]
[1747595923279,7.49284336,170.06,169.95,18.64964886]
[1747595923476,7.49284336,170.06,169.98,26.0]
[1747595923652,7.49284336,170.06,169.99,5.88269898]
[1747595924280,1.6125,170.06,169.99,5.88269898]
[1747595924586,163.47665295,170.07,169.99,5.88269898]
[1747595924759,137.37662314,170.07,169.99,5.88269898]
[1747595926184,143.25667359,170.07,169.99,5.88269898]
[1747595926689,24.44981573,170.05,169.98,5.88299104]
[1747595926986,24.44981573,170.06,169.98,5.88299104]
[1747595927693,24.44981573,170.06,169.96,26.0]
[1747595927694,5.88062334,170.05,169.97,5.88339118]
[1747595927889,137.37662314,170.07,169.98,18.64964886]
[1747595928078,137.37662314,170.07,170.0,26.0]
[1747595928582,137.37662314,170.07,170.0,27.6637]
[1747595929879,137.37662314,170.07,170.01,5.88200694]
[1747595930368,167.70651843,170.07,170.0,31.88215426]
[1747595931180,137.37662314,170.07,170.0,31.88215426]
[1747595931575,143.25661062,170.07,170.0,31.88215426]
[1747595932295,137.37662314,170.07,170.0,31.88215426]
[1747595933203,143.25670534,170.07,170.0,31.88215426]
[1747595933493,161.82643887,170.06,169.96,36.57257543]
[1747595933802,161.82643887,170.06,169.97,5.88339118]
[1747595933967,5.88131506,170.03,169.97,5.88339118]
[1747595934481,30.33087961,170.04,169.97,5.88339118]
[1747595934902,5.88106388,170.04,169.97,5.88339118]
[1747595935567,24.44981573,170.05,169.97,5.88339118]
[1747595935568,5.88062334,170.05,169.97,5.88339118]
[1747595936694,24.44981573,170.04,169.97,5.88339118]
[1747595936889,24.44981573,170.03,169.96,20.2]
[1747595937194,24.44981573,170.01,169.95,26.0]
[1747595937392,157.49662314,170.03,169.95,31.88394949]
[1747595937393,24.44981573,170.02,169.95,31.88394949]
[1747595937598,181.94643887,170.03,169.95,31.88394949]
[1747595937894,157.49662314,170.03,169.95,31.88394949]
[1747595938797,163.37806516,170.03,169.95,31.88394949]
[1747595939473,187.82788089,170.03,169.95,31.88394949]
[1747595939787,5.88235294,170.0,169.95,26.0]
[1747595940369,24.44981573,169.99,169.92,0.42050001]
[1747595941069,167.70879181,170.0,169.92,0.42050001]
[1747595941399,137.37662314,170.0,169.92,6.30556074]
[1747595941970,137.37662314,170.0,169.93,18.64964886]
[1747595942298,26.0,169.9,169.79,19.8]
[1747595942594,41.28167402,169.87,169.77,10.83944976]
[1747595943004,22.41641042,169.86,169.77,10.83944976]
[1747595943474,15.28167402,169.85,169.77,10.83944976]
[1747595943671,15.28167402,169.84,169.77,9.20874976]
[1747595943895,5.88789448,169.84,169.77,9.20874976]
[1747595944897,21.1695685,169.84,169.77,9.20874976]
[1747595945397,5.88789448,169.84,169.77,9.20874976]
[1747595945596,15.28167402,169.82,169.77,9.20874976]
[1747595945797,30.39862093,169.8,169.77,9.20874976]
[1747595945979,30.39862093,169.8,169.72,1.6307]
[1747595946182,20.61248526,169.8,169.72,1.6307]
[1747595946907,24.50933943,169.74,169.67,18.64964886]
[1747595947075,20.61248526,169.8,169.67,44.64964886]
[1747595947279,24.50933943,169.75,169.67,26.0]
[1747595948092,5.89066918,169.76,169.67,26.0]
[1747595948298,24.50933943,169.75,169.67,26.0]
[1747595948481,24.50933943,169.74,169.67,26.0]
[1747595948902,20.61734213,169.76,169.67,26.0]
[1747595949104,24.50933943,169.74,169.67,26.0]
[1747595950003,5.89171036,169.73,169.67,26.0]
[1747595950689,12.19171036,169.73,169.67,26.0]
[1747595950904,5.89171036,169.73,169.67,26.0]
[1747595951208,5.89136326,169.74,169.67,26.0]
[1747595951774,5.89093816,169.76,169.68,18.64964886]
[1747595951978,26.39033933,169.77,169.67,26.0]
[1747595952183,24.50933943,169.73,169.67,26.0]
[1747595952386,24.50933943,169.72,169.67,26.0]
[1747595952593,24.50933943,169.73,169.67,26.0]
[1747595953079,24.50933943,169.72,169.66,26.0]
[1747595953502,30.40128036,169.73,169.66,26.0]
[1747595953802,5.89194093,169.73,169.66,26.0]
[1747595954498,30.40128036,169.73,169.66,26.0]
[1747595954878,6.3,169.72,169.66,26.0]
[1747595955278,6.3,169.72,169.67,26.0]
[1747595955279,30.40156205,169.72,169.67,26.0]
[1747595955478,30.40156205,169.72,169.65,26.0]
[1747595956405,24.50933943,169.7,169.65,26.0]
[1747595956606,24.50933943,169.69,169.63,46.44]
[1747595956794,24.50933943,169.68,169.61,5.89582056]
[1747595956995,24.50933943,169.69,169.64,26.0]
[1747595957189,5.89344648,169.68,169.64,26.0]
[1747595958292,24.50933943,169.67,169.6,238.80964886]
[1747595958623,24.50933943,169.67,169.59,13.91123197]
[1747595958916,5.89344648,169.68,169.59,8.0147]
[1747595958917,24.50933943,169.66,169.59,8.0147]
[1747595959286,30.40369322,169.66,169.59,8.0147]
[1747595959696,30.40369322,169.66,169.59,13.91116018]
[1747595960609,30.40369322,169.66,169.59,5.89646018]
[1747595961610,6.3,169.65,169.59,5.89646018]
[1747595962306,12.19450035,169.65,169.59,5.89646018]
[1747595962492,36.70383978,169.65,169.58,46.44]
[1747595962692,24.50933943,169.64,169.58,46.44]
[1747595962895,24.50933943,169.65,169.58,52.33680577]
[1747595963091,137.37662314,169.68,169.58,52.33680577]
[1747595963092,24.50933943,169.66,169.58,52.33680577]
[1747595963493,24.50933943,169.67,169.58,52.33680577]
[1747595963905,24.50933943,169.67,169.59,18.64964886]
[1747595964514,161.88596257,169.68,169.6,5.89622641]
[1747595964831,137.37662314,169.68,169.61,26.0]
[1747595965119,137.37662314,169.68,169.62,18.64964886]
[1747595965418,161.88596257,169.68,169.61,26.0]
[1747595965613,24.50933943,169.66,169.6,5.89622641]
[1747595965793,24.50933943,169.66,169.59,52.17652394]
[1747595965993,24.50933943,169.65,169.59,52.17652394]
[1747595966195,24.50933943,169.66,169.59,31.89652394]
[1747595966414,30.4036242,169.66,169.59,31.89652394]
[1747595966612,5.89428477,169.66,169.59,31.89652394]
[1747595966823,6.3,169.65,169.59,31.89652394]
[1747595967000,30.4036242,169.66,169.59,31.89652394]
[1747595967523,30.4036242,169.66,169.59,26.0]
[1747595967733,24.50933943,169.65,169.58,26.33684245]
[1747595968097,30.4036242,169.66,169.58,26.33684245]
[1747595968297,30.40319248,169.67,169.58,26.33684245]
[1747595968503,24.50933943,169.66,169.58,26.33684245]
[1747595970151,30.40319248,169.67,169.58,26.33684245]
[1747595970313,161.88596257,169.68,169.6,26.0]
[1747595971624,152.71856638,169.68,169.61,5.89587878]
[1747595971830,6.3,169.67,169.61,5.89587878]
[1747595972612,158.61209003,169.68,169.61,5.89587878]
[1747595974332,152.71856638,169.68,169.61,5.89587878]
[1747595974546,137.37662314,169.68,169.61,5.89587878]
[1747595975220,137.37662314,169.68,169.62,18.64964886]
[1747595975409,35.50194324,169.72,169.63,26.0]
[1747595976228,21.23402742,169.72,169.64,5.89483612]
[1747595979921,21.23402742,169.72,169.64,10.60582091]
[1747595980447,21.23443323,169.71,169.64,5.89483612]
[1747595981910,21.64194324,169.7,169.64,5.89483612]
[1747595982933,15.34194324,169.68,169.63,26.0]
[1747595983135,15.34194324,169.65,169.58,24.54657066]
[1747595983339,15.34194324,169.65,169.58,29.14738219]
[1747595983546,15.34194324,169.65,169.58,55.14738219]
[1747595983839,5.89344648,169.68,169.58,55.14738219]
[1747595984026,15.34194324,169.66,169.58,55.14738219]
[1747595985348,21.23620648,169.66,169.58,55.14738219]
[1747595986822,2.3,169.65,169.61,26.0]
[1747595987229,152.71856638,169.69,169.61,26.0]
[1747595987429,143.26986769,169.69,169.61,26.0]
[1747595988327,137.37662314,169.69,169.61,26.0]
[1747595988523,137.37662314,169.69,169.62,18.64964886]
[1747595988728,137.37662314,169.69,169.62,18.14964886]
[1747595989844,137.37662314,169.69,169.63,5.89518363]
[1747595991446,15.34194324,169.72,169.63,5.89518363]
[1747595992245,5.89213123,169.72,169.63,5.89518363]
[1747595992551,15.34194324,169.69,169.63,5.89518363]
[1747595993449,21.2350895,169.69,169.63,5.89518363]
[1747595995658,5.89240469,169.71,169.63,5.89518363]
[1747595995832,15.34194324,169.7,169.63,5.89518363]
[1747595996758,21.23512032,169.69,169.63,5.89518363]
[1747595997654,6.3,169.68,169.63,5.89518363]
[1747595998155,5.89286648,169.7,169.63,5.89518363]
[1747595998543,21.23480972,169.7,169.63,5.89518363]
[1747596000175,15.34194324,169.7,169.63,5.89518363]
[1747596000661,21.23438759,169.71,169.63,5.89518363]
[1747596001257,15.34194324,169.67,169.6,20.16]
[1747596001460,15.34194324,169.66,169.6,20.16]
[1747596002041,5.89448865,169.65,169.6,20.16]
[1747596002361,21.23573707,169.67,169.6,26.05614145]
[1747596002947,2.3,169.65,169.6,26.05614145]
[1747596003347,2.3,169.65,169.6,20.16]
[1747596003956,2.3,169.65,169.6,26.05616329]
[1747596004142,21.23623723,169.66,169.6,26.05616329]
[1747596004543,21.23623723,169.66,169.58,26.0]
[1747596004750,21.23623723,169.66,169.58,31.89682793]
[1747596006468,15.34194324,169.65,169.58,31.89682793]
[1747596006766,15.34194324,169.66,169.58,31.89682793]
[1747596007264,15.34194324,169.65,169.58,31.89682793]
[1747596007468,15.34194324,169.64,169.58,31.89682793]
[1747596008260,15.34194324,169.63,169.57,24.54680719]
[1747596008652,21.23713266,169.63,169.57,5.89715833]
[1747596009066,15.34194324,169.62,169.56,31.89750805]
[1747596009243,15.34194324,169.61,169.54,44.64964886]
[1747596009438,15.34194324,169.61,169.54,26.0]
[1747596010239,15.34194324,169.61,169.54,31.89821544]
[1747596010645,21.23804149,169.61,169.54,31.89821544]
[1747596010962,15.34194324,169.63,169.54,31.89821544]
[1747596011153,15.34194324,169.61,169.54,31.89821544]
[1747596012273,21.23796146,169.61,169.54,31.89821544]
[1747596012971,6.3,169.6,169.54,31.89821544]
[1747596013173,21.23796146,169.61,169.54,31.89821544]
[1747596013685,15.34194324,169.62,169.54,31.89821544]
[1747596013857,158.61346891,169.64,169.55,18.64964886]
[1747596014470,158.61346891,169.64,169.55,19.82886334]
[1747596014471,137.37662314,169.64,169.55,19.82886334]
[1747596014671,137.37662314,169.64,169.58,26.0]
[1747596015876,137.37662314,169.64,169.59,5.89657409]
[1747596016075,158.61346039,169.64,169.58,26.0]
[1747596016374,15.34194324,169.63,169.56,26.0]
[1747596016570,15.34194324,169.62,169.56,26.0]
[1747596016772,15.34194324,169.62,169.54,24.54796194]
[1747596016981,15.34194324,169.62,169.56,26.0]
[1747596017490,15.34194324,169.6,169.53,5.89859599]
[1747596017653,15.34194324,169.6,169.54,26.0]
[1747596017854,21.23828589,169.6,169.54,31.89825532]
[1747596019377,4.5,169.61,169.55,18.64964886]
[1747596019900,4.5,169.61,169.54,39.54845532]
[1747596019901,15.34194324,169.61,169.54,39.54845532]
[1747596020779,15.34194324,169.6,169.54,26.0]
[1747596020968,15.34194324,169.59,169.53,26.0]
[1747596022584,137.37662314,169.58,169.49,6.087]
[1747596022785,15.34194324,169.53,169.42,1.6257]
[1747596022989,15.34194324,169.53,169.46,26.0]
[1747596023163,15.34194324,169.54,169.46,26.0]
[1747596023364,15.34194324,169.55,169.46,26.0]
[1747596023779,21.24087995,169.53,169.48,26.0]
[1747596024067,15.34194324,169.52,169.48,26.0]
[1747596024887,15.34194324,169.52,169.46,31.9009183]
[1747596025393,15.34194324,169.51,169.43,5.90214247]
[1747596025577,15.34194324,169.51,169.46,26.0]
[1747596025776,15.34194324,169.52,169.46,26.0]
[1747596026186,35.48194324,169.54,169.46,31.90096184]
[1747596027792,137.37662314,169.57,169.47,18.64964886]
[1747596027997,6.3,169.53,169.47,18.64964886]
[1747596028165,6.3,169.53,169.47,38.80964886]
[1747596028370,137.37662314,169.57,169.5,26.0]
[1747596029196,137.37662314,169.57,169.51,5.89935697]
[1747596031690,35.50194324,169.6,169.51,5.89935697]
[1747596031888,137.37662314,169.61,169.54,26.0]
[1747596032995,6.3,169.6,169.54,26.0]
[1747596033688,137.37662314,169.61,169.55,5.8979652]
[1747596034303,152.71856638,169.61,169.55,5.8979652]
[1747596034681,15.34194324,169.6,169.55,5.8979652]
[1747596036100,137.37662314,169.61,169.55,5.8979652]
[1747596036101,152.71856638,169.61,169.55,5.8979652]
[1747596036688,15.34194324,169.59,169.52,31.89900896]
[1747596036889,15.34194324,169.6,169.52,31.89900896]
[1747596037691,137.37662314,169.61,169.52,46.64653137]